bitfinex/quotes_SOLUSD_20250617
["timestamp","ask_amount","ask_price","bid_price","bid_amount"]
[1750119018008,6.70106546,149.23,149.11,0.42648471]
[1750119018322,35.38,149.22,149.11,0.42648471]
[1750119018622,35.38,149.24,149.11,0.42648471]
[1750119019019,35.38,149.26,149.13,0.42648471]
[1750119019197,26.0,149.23,149.12,18.64964886]
[1750119019396,26.0,149.23,149.11,0.28432314]
[1750119019597,6.70151454,149.22,149.12,6.70600858]
[1750119019800,6.70151454,149.22,149.12,18.64964886]
[1750119020328,26.0,149.23,149.13,0.28432314]
[1750119020329,32.70113481,149.23,149.13,0.28432314]
[1750119020635,6.70065356,149.24,149.13,0.42648471]
[1750119020810,26.0,149.23,149.13,0.42648471]
[1750119021125,6.70065356,149.24,149.13,0.42648471]
[1750119021295,52.12976424,149.26,149.13,0.42648471]
[1750119021296,6.698821,149.28,149.13,0.42648471]
[1750119021500,6.69971861,149.26,149.14,6.70510929]
[1750119021705,26.0,149.23,149.14,6.70510929]
[1750119021903,26.0,149.23,149.09,6.3256]
[1750119022125,35.24,149.22,149.11,0.42648471]
[1750119022343,1.5832,149.34,149.16,18.933972]
[1750119022625,16.74287229,149.32,149.16,19.07613357]
[1750119022999,35.32,149.31,149.16,19.07613357]
[1750119023200,26.0,149.3,149.16,19.07613357]
[1750119023606,23.44273274,149.3,149.18,0.28432314]
[1750119023830,26.0,149.28,149.11,18.64964886]
[1750119024041,26.0,149.28,149.13,18.64964886]
[1750119024221,26.0,149.28,149.14,0.28432314]
[1750119024542,26.0,149.28,149.14,0.14216157]
[1750119024914,26.0,149.28,149.14,0.42648471]
[1750119025410,35.5,149.27,149.17,19.07613357]
[1750119025601,35.5,149.27,149.2,0.28432314]
[1750119025838,683.0,149.55,149.2,0.28432314]
[1750119025839,16.737275,149.37,149.22,18.933972]
[1750119026140,35.46,149.36,149.23,0.14216157]
[1750119026352,6.69433659,149.38,149.23,0.14216157]
[1750119026638,35.44,149.37,149.22,18.933972]
[1750119027016,26.0,149.34,149.22,18.933972]
[1750119027334,26.0,149.34,149.21,11.02]
[1750119027646,23.43802316,149.33,149.22,6.98560968]
[1750119028024,6.69568128,149.35,149.24,0.28432314]
[1750119028243,35.62,149.34,149.24,0.42648471]
[1750119028414,8.26314584,149.39,149.24,0.42648471]
[1750119028415,6.69517635,149.37,149.24,0.42648471]
[1750119028623,35.6,149.36,149.24,0.42648471]
[1750119028815,35.56,149.36,149.26,0.28432314]
[1750119029033,35.56,149.37,149.26,0.42648471]
[1750119029341,6.69299243,149.41,149.26,0.42648471]
[1750119029342,35.56,149.38,149.26,0.42648471]
[1750119029719,7.8078,149.42,149.29,0.14216157]
[1750119029918,6.69164882,149.44,149.32,0.14216157]
[1750119030119,1.4706423,149.45,149.32,0.14216157]
[1750119030534,37.0106423,149.45,149.32,0.14216157]
[1750119030740,37.0106423,149.45,149.35,19.07613357]
[1750119030940,1.4706423,149.45,149.35,0.42648471]
[1750119031715,1.4706423,149.45,149.38,0.14216157]
[1750119032140,1.4706423,149.45,149.4,18.933972]
[1750119032845,1.4706423,149.45,149.41,0.14216157]
[1750119033013,1.4706423,149.45,149.44,19.07613357]
[1750119033212,35.44,149.58,149.44,19.07613357]
[1750119033817,6.68358232,149.63,149.46,45.07613357]
[1750119034036,23.37853182,149.71,149.5,0.42648471]
[1750119034235,23.37853182,149.71,149.52,45.07613357]
[1750119034582,23.37853182,149.71,149.54,0.14216157]
[1750119034583,35.38,149.7,149.54,0.14216157]
[1750119034716,26.0,149.67,149.54,0.28432314]
[1750119034914,35.38,149.7,149.54,0.28432314]
[1750119035142,35.38,149.7,149.52,18.64964886]
[1750119035322,18.64964886,149.69,149.53,0.28432314]
[1750119035637,35.38,149.7,149.53,0.42648471]
[1750119035839,6.68047297,149.69,149.55,19.07613357]
[1750119036147,35.44,149.69,149.55,19.07613357]
[1750119036322,61.44,149.69,149.55,19.07613357]
[1750119036522,35.44,149.69,149.55,19.07613357]
[1750119036831,6.67998925,149.71,149.54,32.687174]
[1750119036832,35.42,149.7,149.59,19.07613357]
[1750119037023,35.42,149.7,149.61,0.42648471]
[1750119037353,35.42,149.7,149.6,11.0]
[1750119037837,26.0,149.65,149.54,16.717935]
[1750119038014,26.0,149.65,149.5,6.68896321]
[1750119038210,26.0,149.61,149.48,17.6894605]
[1750119038417,26.0,149.57,149.48,17.6894605]
[1750119038945,35.32,149.6,149.48,34.41410593]
[1750119039150,35.32,149.6,149.49,18.64964886]
[1750119039367,7.7893,149.66,149.49,44.64964886]
[1750119039649,35.28,149.64,149.5,0.42648471]
[1750119039946,35.28,149.64,149.53,0.28432314]
[1750119040120,41.96271848,149.64,149.53,0.28432314]
[1750119040451,67.96271848,149.64,149.53,0.28432314]
[1750119040761,84.66948137,149.64,149.53,0.28432314]
[1750119041314,26.0,149.61,149.49,25.33905952]
[1750119041538,26.0,149.61,149.5,18.64964886]
[1750119041931,26.0,149.61,149.51,0.28432314]
[1750119042250,26.0,149.63,149.51,0.42648471]
[1750119043126,49.39130554,149.63,149.5,6.68852]
[1750119043325,26.0,149.61,149.5,6.68852]
[1750119043618,26.0,149.61,149.49,18.64964886]
[1750119043822,6.68449197,149.6,149.49,25.33902977]
[1750119044021,26.0,149.57,149.46,10.92]
[1750119045525,6.68627975,149.56,149.47,6.69030574]
[1750119045728,35.0,149.55,149.47,6.69030574]
[1750119045935,35.0,149.55,149.48,18.79181043]
[1750119046248,34.92,149.57,149.49,0.14216157]
[1750119046745,34.92,149.57,149.46,11.06216157]
[1750119046746,26.0,149.54,149.46,10.92]
[1750119047229,26.0,149.54,149.39,10.92]
[1750119047444,26.0,149.5,149.37,34.35174666]
[1750119047728,26.0,149.5,149.37,67.82567047]
[1750119047729,34.88,149.49,149.37,67.82567047]
[1750119048036,34.88,149.49,149.38,18.933972]
[1750119048236,34.88,149.49,149.41,19.07613357]
[1750119048442,34.82,149.57,149.41,19.07613357]
[1750119048770,60.82,149.58,149.41,19.07613357]
[1750119049039,60.82,149.58,149.4,26.0]
[1750119049040,34.8,149.57,149.43,19.07613357]
[1750119049630,41.48613338,149.57,149.46,0.14216157]
[1750119049956,26.0,149.54,149.47,10.92]
[1750119050144,26.0,149.54,149.43,25.3416773]
[1750119050960,26.0,149.54,149.42,10.92]
[1750119051316,26.0,149.5,149.42,10.92]
[1750119051521,41.36977548,149.49,149.42,10.92]
[1750119052918,58.09330213,149.49,149.42,10.92]
[1750119053122,26.0,149.46,149.36,25.34488185]
[1750119053359,26.0,149.46,149.37,0.14216157]
[1750119053534,6.69120107,149.45,149.38,6.69433659]
[1750119053731,6.69120107,149.45,149.36,25.34443843]
[1750119054131,6.69120107,149.45,149.35,10.92]
[1750119054132,6.69120107,149.45,149.35,17.61561998]
[1750119054570,26.0,149.42,149.35,10.92]
[1750119054865,26.0,149.42,149.29,53.0]
[1750119054866,34.54,149.41,149.29,53.0]
[1750119055152,26.0,149.38,149.29,59.69829436]
[1750119055356,26.0,149.38,149.3,18.64964886]
[1750119055667,26.0,149.38,149.3,25.34721666]
[1750119055953,26.0,149.45,149.31,0.42648471]
[1750119056136,34.52,149.44,149.31,0.42648471]
[1750119056334,34.52,149.44,149.34,19.07613357]
[1750119056544,34.52,149.44,149.35,10.94]
[1750119057355,34.52,149.44,149.36,18.933972]
[1750119057762,41.21176694,149.44,149.37,6.69478476]
[1750119057943,34.52,149.44,149.37,6.69478476]
[1750119058143,34.52,149.44,149.36,6.69522418]
[1750119058339,26.0,149.41,149.32,18.64964886]
[1750119059049,26.0,149.41,149.31,17.63747505]
[1750119059859,6.69344042,149.4,149.31,10.94]
[1750119060463,23.42704149,149.4,149.31,10.94]
[1750119060767,26.0,149.37,149.23,10.94]
[1750119061057,0.42648471,149.35,149.23,17.64103582]
[1750119061275,0.42648471,149.35,149.23,10.94]
[1750119061448,0.14216157,149.35,149.23,10.94]
[1750119061650,26.0,149.31,149.18,6.5815]
[1750119061838,26.0,149.26,149.08,10.94]
[1750119062046,26.0,149.22,149.09,6.70735797]
[1750119062362,34.52,149.25,149.09,6.70735797]
[1750119062537,23.44273274,149.3,149.12,26.0]
[1750119062738,23.44273274,149.3,149.15,18.64964886]
[1750119062948,26.0,149.27,149.16,0.14216157]
[1750119063143,23.44273274,149.3,149.16,0.14216157]
[1750119063144,6.69792364,149.3,149.16,0.42648471]
[1750119063340,32.69792364,149.3,149.16,0.14216157]
[1750119063754,34.52,149.31,149.21,19.07613357]
[1750119063940,34.52,149.36,149.21,19.07613357]
[1750119064462,6.69388847,149.39,149.25,0.28432314]
[1750119064648,34.52,149.38,149.27,19.07613357]
[1750119064849,34.52,149.38,149.27,18.933972]
[1750119065255,34.52,149.38,149.28,0.14216157]
[1750119065561,34.54,149.4,149.28,0.14216157]
[1750119065781,6.69523299,149.36,149.26,6.69952355]
[1750119065949,6.69523299,149.36,149.24,18.64964886]
[1750119066259,26.0,149.33,149.23,10.94]
[1750119066461,34.54,149.32,149.23,10.94]
[1750119066657,26.0,149.29,149.23,10.94]
[1750119066985,26.0,149.29,149.18,53.04]
[1750119067148,44.933972,149.28,149.16,10.94]
[1750119067677,0.14216157,149.27,149.08,12.6002]
[1750119067845,26.0,149.19,149.08,10.94]
[1750119068047,26.0,149.15,149.08,10.94]
[1750119068270,26.0,149.15,149.03,6.70970095]
[1750119068470,26.0,149.15,149.0,6.71140939]
[1750119068989,0.14216157,149.11,148.99,10.94]
[1750119069191,26.0,149.07,148.99,10.94]
[1750119069360,34.54,149.06,148.99,10.94]
[1750119069757,34.54,149.05,148.99,10.94]
[1750119070184,34.54,149.05,148.99,17.65173769]
[1750119070553,8.37228777,149.14,149.0,18.64964886]
[1750119070756,26.0,149.11,149.0,18.64964886]
[1750119070978,34.56,149.13,149.01,0.14216157]
[1750119071178,34.56,149.13,149.01,0.42648471]
[1750119071858,60.56,149.13,149.01,0.42648471]
[1750119072181,26.0,149.1,149.02,6.71050865]
[1750119072678,26.0,149.1,148.97,29.20964886]
[1750119072679,26.0,149.1,148.98,6.71231037]
[1750119072863,0.14216157,149.09,148.98,6.71231037]
[1750119073267,26.0,149.1,148.98,6.71231037]
[1750119073852,0.14216157,149.09,148.98,6.71231037]
[1750119074049,26.0,149.05,148.98,6.71231037]
[1750119074252,26.0,149.01,148.97,6.71269571]
[1750119074894,26.0,149.01,148.92,6.71501477]
[1750119075377,26.0,149.01,148.91,6.7154153]
[1750119075676,0.14216157,148.96,148.82,10.56]
[1750119075859,26.0,148.92,148.83,23.51676408]
[1750119076566,26.0,148.91,148.83,6.71907545]
[1750119076766,26.0,148.91,148.79,6.72088177]
[1750119076969,26.0,148.91,148.7,23.53732346]
[1750119076970,26.0,148.87,148.7,23.53732346]
[1750119077169,26.0,148.83,148.7,23.53732346]
[1750119077568,26.0,148.83,148.7,57.16207127]
[1750119077964,60.58,148.86,148.74,0.14216157]
[1750119078281,26.0,148.86,148.73,18.64964886]
[1750119078456,8.0034306,148.9,148.77,18.64964886]
[1750119078657,42.5834306,148.9,148.8,0.42648471]
[1750119078858,8.0034306,148.9,148.8,0.42648471]
[1750119079075,1.5354,149.0,148.82,0.42648471]
[1750119079387,34.58,148.99,148.86,0.42648471]
[1750119079616,14.35433799,149.05,148.89,0.28432314]
[1750119079887,8.14753799,149.05,148.92,19.07613357]
[1750119080075,34.58,149.04,148.94,19.07613357]
[1750119080663,8.14753799,149.05,148.94,19.07613357]
[1750119080957,34.58,149.05,148.94,19.07613357]
[1750119081563,26.0,149.02,148.94,19.07613357]
[1750119081766,34.58,149.05,148.94,19.07613357]
[1750119082285,34.58,149.05,148.94,6.71407169]
[1750119082286,26.0,149.02,148.94,6.71407169]
[1750119082461,34.58,149.05,148.95,18.933972]
[1750119082783,41.75022622,149.12,148.95,18.933972]
[1750119082784,34.58,149.08,148.96,0.14216157]
[1750119082986,6.0372,149.18,149.02,26.0]
[1750119083189,42.72846111,149.16,149.04,0.42648471]
[1750119083487,26.0,149.18,149.04,0.42648471]
[1750119083666,34.58,149.18,149.04,0.42648471]
[1750119084079,34.58,149.18,149.05,23.482053]
[1750119084281,34.58,149.18,149.07,0.14216157]
[1750119084482,26.0,149.14,149.0,29.65613357]
[1750119084788,26.0,149.14,149.0,10.58]
[1750119084994,0.14216157,149.13,149.0,10.58]
[1750119085283,26.0,149.14,149.0,10.58]
[1750119085462,0.14216157,149.13,149.0,10.58]
[1750119086083,26.0,149.09,149.0,10.58]
[1750119086288,34.56,149.08,149.0,10.58]
[1750119086471,26.0,149.05,149.0,10.58]
[1750119088181,32.7093432,149.05,149.0,10.58]
[1750119088374,6.70825786,149.07,149.0,10.58]
[1750119088690,40.2198686,149.18,149.02,0.42648471]
[1750119088889,26.0,149.14,149.0,10.58]
[1750119089192,34.56,149.17,148.93,10.58]
[1750119089193,0.14216157,149.05,148.93,10.58]
[1750119089374,26.0,149.01,148.93,10.58]
[1750119089978,26.0,149.01,148.94,18.64964886]
[1750119090188,10.0,149.13,148.94,18.64964886]
[1750119090189,42.11595793,149.15,148.96,19.07613357]
[1750119090396,34.56,149.14,148.96,19.07613357]
[1750119090687,34.56,149.13,148.96,19.07613357]
[1750119090923,6.70465973,149.15,148.96,19.07613357]
[1750119091085,34.56,149.14,149.0,19.07613357]
[1750119091287,56.9437931,149.27,149.06,18.64964886]
[1750119091586,56.9437931,149.27,149.09,0.28432314]
[1750119091587,26.0,149.23,149.09,0.28432314]
[1750119092004,26.0,149.23,149.07,10.72216157]
[1750119092005,19.07613357,149.22,149.02,53.16]
[1750119092310,26.0,149.15,149.05,19.07613357]
[1750119092512,34.56,149.14,149.05,19.07613357]
[1750119093009,34.56,149.14,149.03,10.58]
[1750119093010,26.0,149.11,149.03,10.58]
[1750119093310,26.0,149.11,149.03,17.28983121]
[1750119093608,26.0,149.11,149.03,10.58]
[1750119093814,0.14216157,149.1,148.95,6.2314]
[1750119093992,26.0,149.11,148.96,10.58]
[1750119094312,26.0,149.1,148.98,6.71231037]
[1750119094514,26.14216157,149.09,148.97,10.58]
[1750119094715,26.0,149.09,148.97,10.58]
[1750119095013,26.0,149.05,148.93,10.58]
[1750119095318,34.54,149.04,148.94,18.64964886]
[1750119095819,34.54,149.07,148.95,0.42648471]
[1750119096401,26.0,149.1,148.98,0.28432314]
[1750119096743,10.58,149.17,149.01,19.07613357]
[1750119096744,6.7037608,149.17,149.01,19.07613357]
[1750119097027,34.54,149.18,149.05,19.07613357]
[1750119097310,60.54,149.18,149.05,19.07613357]
[1750119097518,26.0,149.15,149.05,10.86432314]
[1750119097704,26.0,149.15,149.05,10.58]
[1750119098013,0.14216157,149.14,149.05,10.58]
[1750119098213,26.0,149.11,149.05,10.58]
[1750119098729,6.70600858,149.12,149.05,10.58]
[1750119098886,34.54,149.11,149.05,10.58]
[1750119099306,34.54,149.11,149.05,17.28911034]
[1750119100023,26.0,149.08,148.97,16.78135423]
[1750119100226,26.0,149.08,148.99,18.64964886]
[1750119100519,6.70825786,149.07,148.99,6.71185985]
[1750119101021,26.0,149.04,148.98,17.29224695]
[1750119101234,34.52,149.03,148.98,10.58]
[1750119101400,26.0,149.0,148.91,17.23546571]
[1750119102132,26.0,149.04,148.92,18.64964886]
[1750119102315,60.52,149.04,148.93,0.42648471]
[1750119102519,26.0,149.09,148.95,19.07613357]
[1750119102700,34.52,149.08,148.95,19.07613357]
[1750119103012,6.70606878,149.12,148.95,19.07613357]
[1750119103222,6.70561661,149.13,148.99,19.07613357]
[1750119103517,6.70561661,149.13,148.94,34.01939572]
[1750119103518,54.7,149.11,148.94,34.01939572]
[1750119103724,54.7,149.11,148.94,17.23411306]
[1750119103725,26.14216157,149.07,148.94,17.23411306]
[1750119104241,26.0,149.03,148.94,10.52]
[1750119104524,26.0,148.95,148.88,53.16]
[1750119104727,0.28432314,149.03,148.88,76.66874061]
[1750119104728,34.52,148.94,148.88,76.66874061]
[1750119104943,34.52,148.95,148.88,76.66874061]
[1750119105226,34.52,149.0,148.89,18.933972]
[1750119105415,34.52,149.0,148.89,18.79181043]
[1750119105416,60.52,149.0,148.89,18.79181043]
[1750119105590,26.0,148.97,148.88,76.66874061]
[1750119106499,32.71295199,148.97,148.88,59.87669333]
[1750119106705,32.71295199,148.97,148.83,17.23907545]
[1750119106906,26.0,148.93,148.83,17.23907545]
[1750119107129,34.52,148.92,148.83,17.23907545]
[1750119107323,26.0,148.89,148.83,10.52]
[1750119108208,26.0,148.89,148.77,18.933972]
[1750119108209,26.0,148.89,148.77,35.45366391]
[1750119108428,26.0,148.89,148.78,23.52466729]
[1750119108736,16.92588474,148.96,148.79,18.64964886]
[1750119108898,26.0,148.94,148.8,0.42648471]
[1750119109224,60.5,148.95,148.8,0.42648471]
[1750119109225,26.0,148.92,148.8,0.42648471]
[1750119109806,4.67200398,148.91,148.78,16.80333378]
[1750119110224,4.67062573,148.91,148.78,16.80333378]
[1750119110398,26.0,148.94,148.79,18.64964886]
[1750119110601,26.0,148.9,148.8,23.52150536]
[1750119111415,26.0,148.9,148.8,6.7204301]
[1750119111593,0.14216157,148.88,148.74,53.16]
[1750119111797,26.0,148.86,148.74,53.16]
[1750119112002,26.0,148.82,148.74,53.16]
[1750119112310,26.0,148.82,148.74,59.88303443]
[1750119112521,6.71997849,148.81,148.74,53.16]
[1750119112698,26.0,148.8,148.74,59.8829319]
[1750119112902,26.0,148.82,148.74,59.8829319]
[1750119113604,34.5,148.85,148.74,59.8829319]
[1750119113809,34.5,148.85,148.76,0.28432314]
[1750119113810,34.52,148.84,148.76,0.28432314]
[1750119114115,6.71546571,148.91,148.76,0.42648471]
[1750119114435,34.52,148.9,148.76,0.42648471]
[1750119114730,6.5083,148.98,148.79,0.14216157]
[1750119114932,79.46224523,148.97,148.78,18.933972]
[1750119115132,79.46224523,148.97,148.77,34.04624856]
[1750119115133,18.64964886,148.93,148.77,17.2417853]
[1750119115333,26.0,148.9,148.77,17.2417853]
[1750119115510,26.0,148.86,148.77,17.2417853]
[1750119116435,26.0,148.86,148.77,10.52]
[1750119116610,26.0,148.82,148.77,10.52]
[1750119116806,34.52,148.81,148.77,10.52]
[1750119117024,26.0,148.78,148.7,23.81603706]
[1750119117228,26.0,148.78,148.7,10.54]
[1750119117408,34.52,148.81,148.7,10.54]
[1750119117610,60.52,148.81,148.71,0.14216157]
[1750119118032,60.52,148.81,148.71,0.28432314]
[1750119118211,60.52,148.81,148.7,17.26472479]
[1750119118212,26.0,148.78,148.7,17.26472479]
[1750119119008,26.0,148.78,148.7,35.91437365]
[1750119119230,32.72151135,148.78,148.7,17.26488519]
[1750119119435,26.0,148.78,148.7,17.26488519]
[1750119119634,34.52,148.81,148.7,17.26488519]
[1750119119635,32.72073612,148.8,148.7,17.26488519]
[1750119119811,26.0,148.77,148.68,6.72585418]
[1750119120312,26.0,148.78,148.67,1.4706423]
[1750119120635,23.52181138,148.8,148.67,1.4706423]
[1750119120636,1.5331,148.75,148.67,1.4706423]
[1750119120833,26.0,148.68,148.55,6.73174015]
[1750119121022,26.0,148.64,148.55,6.73174015]
[1750119121337,26.0,148.64,148.54,8.33333333]
[1750119121338,26.0,148.6,148.54,8.33333333]
[1750119121542,26.0,148.56,148.54,8.33333333]
[1750119121911,34.52,148.55,148.54,8.33333333]
[1750119122106,26.0,148.52,148.5,2.8219]
[1750119122326,26.0,148.52,148.41,6.0194]
[1750119122608,32.73345922,148.52,148.42,25.81347849]
[1750119122815,26.0,148.52,148.42,6.73734492]
[1750119123251,34.52,148.52,148.42,23.58143601]
[1750119123416,34.52,148.52,148.43,26.0]
[1750119123842,23.2806907,148.63,148.45,26.0]
[1750119124153,0.28432314,148.63,148.5,26.0]
[1750119124446,33.6111858,148.76,148.47,10.0]
[1750119124447,34.5,148.67,148.55,26.0]
[1750119124737,46.80938712,148.73,148.56,23.55950457]
[1750119124911,6.72404518,148.72,148.56,23.55950457]
[1750119125115,30.0,148.73,148.57,18.933972]
[1750119125550,34.52,148.73,148.6,0.14216157]
[1750119126114,41.24367877,148.73,148.59,0.28432314]
[1750119126310,26.0,148.7,148.59,0.28432314]
[1750119126536,26.0,148.7,148.58,0.28432314]
[1750119126713,26.0,148.7,148.58,0.42648471]
[1750119126915,22.89366071,148.76,148.6,19.07613357]
[1750119127123,6.72268907,148.75,148.6,19.07613357]
[1750119127421,34.52,148.74,148.6,19.07613357]
[1750119127609,6.72268907,148.75,148.6,19.07613357]
[1750119127816,12.81010235,148.76,148.59,49.55474795]
[1750119128026,23.52150536,148.8,148.6,29.33181043]
[1750119128233,6.72000622,148.81,148.64,19.07613357]
[1750119128415,34.52,148.8,148.64,19.07613357]
[1750119128611,26.0,148.79,148.64,25.40213357]
[1750119128843,60.52,148.79,148.66,19.07613357]
[1750119129225,34.52,148.79,148.66,19.07613357]
[1750119129538,34.52,148.79,148.66,45.07613357]
[1750119129739,6.71957896,148.82,148.67,0.14216157]
[1750119129740,34.52,148.82,148.67,0.14216157]
[1750119129949,6.7172701,148.87,148.7,0.14216157]
[1750119130135,1.6075,148.91,148.72,19.07613357]
[1750119130321,6.71591672,148.9,148.72,20.58343357]
[1750119130515,34.52,148.91,148.76,19.07613357]
[1750119130719,34.52,148.91,148.79,0.14216157]
[1750119130938,1.6075,148.98,148.79,0.14216157]
[1750119130939,1.6075,148.98,148.83,18.933972]
[1750119131141,1.6075,148.98,148.82,6.71952694]
[1750119131142,58.01466334,148.97,148.82,6.71952694]
[1750119131346,58.01466334,148.97,148.83,0.28432314]
[1750119131614,58.01466334,148.97,148.83,19.07613357]
[1750119131615,34.52,148.96,148.83,19.07613357]
[1750119131818,34.52,148.96,148.83,0.28432314]
[1750119132046,26.0,148.93,148.8,10.48]
[1750119132346,18.933972,148.95,148.8,17.19997859]
[1750119132532,34.52,148.96,148.81,19.07613357]
[1750119132732,23.49466334,148.97,148.81,19.07613357]
[1750119132939,23.49466334,148.97,148.8,34.00105385]
[1750119132940,6.71140939,149.0,148.87,18.64964886]
[1750119133116,6.71140939,149.0,148.87,19.07613357]
[1750119133319,34.52,148.99,148.87,19.07613357]
[1750119133524,16.77423778,149.04,148.87,19.07613357]
[1750119133525,6.71005837,149.03,148.87,19.07613357]
[1750119133727,23.48520431,149.03,148.87,19.07613357]
[1750119133944,34.5,149.02,148.87,19.07613357]
[1750119134518,6.71005837,149.03,148.87,19.07613357]
[1750119134519,34.5,149.01,148.87,19.07613357]
[1750119134941,6.71095899,149.01,148.9,0.14216157]
[1750119135139,34.5,149.01,148.92,0.28432314]
[1750119135528,34.5,149.01,148.92,19.07613357]
[1750119136051,23.482053,149.05,148.92,19.07613357]
[1750119136233,60.5,149.04,148.92,19.07613357]
[1750119136432,6.70690811,149.1,148.92,45.07613357]
[1750119136630,34.5,149.09,148.92,45.07613357]
[1750119136931,26.0,149.02,148.92,17.33686881]
[1750119137854,26.0,149.02,148.93,0.14216157]
[1750119138161,26.0,149.02,148.92,17.33686881]
[1750119138751,6.71095899,149.01,148.92,17.33686881]
[1750119139054,26.0,148.98,148.92,10.48]
[1750119139364,26.0,148.97,148.85,10.48]
[1750119139550,26.0,148.96,148.85,10.48]
[1750119139725,26.0,148.92,148.85,10.48]
[1750119139930,34.46,148.91,148.85,10.48]
[1750119140128,26.0,148.88,148.85,10.48]
[1750119140340,34.46,148.91,148.85,10.48]
[1750119140662,26.0,148.88,148.82,53.28]
[1750119140841,26.0,148.88,148.78,23.57838406]
[1750119141148,32.71703466,148.88,148.78,10.48]
[1750119141347,32.71703466,148.88,148.78,17.20099856]
[1750119141581,16.79077724,148.9,148.78,17.20099856]
[1750119141582,6.71629208,148.9,148.78,17.20099856]
[1750119141731,18.0305,149.0,148.79,26.0]
[1750119141732,34.46,148.91,148.79,26.0]
[1750119142055,34.46,148.92,148.78,17.20099856]
[1750119142369,26.0,148.89,148.78,6.72099856]
[1750119142663,0.14216157,148.88,148.77,10.48]
[1750119142947,26.0,148.84,148.77,10.48]
[1750119143159,34.46,148.83,148.77,10.48]
[1750119143654,26.0,148.8,148.77,10.48]
[1750119143823,26.0,148.8,148.7,10.48]
[1750119144027,26.0,148.76,148.64,6.5945]
[1750119144249,26.0,148.72,148.6,45.93828488]
[1750119144554,34.46,148.71,148.59,26.0]
[1750119144745,34.46,148.71,148.58,16.82541491]
[1750119144952,0.14216157,148.69,148.57,6.73083395]
[1750119145248,6.72494956,148.7,148.57,6.73083395]
[1750119146443,26.0,148.74,148.58,18.64964886]
[1750119146649,34.46,148.73,148.59,0.42648471]
[1750119146849,26.0,148.74,148.61,19.07613357]
[1750119147034,34.46,148.72,148.61,19.07613357]
[1750119147241,20.18,148.82,148.61,45.07613357]
[1750119147242,6.71952694,148.82,148.61,45.07613357]
[1750119147560,26.0,148.78,148.61,45.07613357]
[1750119147728,18.79181043,148.73,148.6,6.7294751]
[1750119148071,26.0,148.7,148.6,6.7294751]
[1750119148361,34.46,148.72,148.6,6.7294751]
[1750119148565,60.46,148.72,148.61,0.28432314]
[1750119149051,90.81822884,148.87,148.63,19.07613357]
[1750119149250,41.17952694,148.82,148.63,19.07613357]
[1750119149767,26.0,148.79,148.63,19.07613357]
[1750119149980,41.17952694,148.82,148.63,19.07613357]
[1750119150258,6.71907452,148.84,148.67,19.07613357]
[1750119150566,6.71907452,148.84,148.69,19.07613357]
[1750119150567,26.0,148.8,148.69,19.07613357]
[1750119150863,6.71636778,148.89,148.74,18.64964886]
[1750119151061,6.71549469,148.91,148.75,0.42648471]
[1750119151265,34.46,148.9,148.75,0.42648471]
[1750119151472,27.26233289,148.97,148.77,26.0]
[1750119151766,6.7132116,148.96,148.78,29.55613357]
[1750119151971,26.8932116,148.96,148.78,10.76432314]
[1750119152148,26.0,148.92,148.78,10.76432314]
[1750119152662,26.0,148.91,148.78,10.76432314]
[1750119152973,26.0,148.83,148.78,10.48]
[1750119153164,34.46,148.82,148.78,10.48]
[1750119153362,34.46,148.82,148.72,6.72402802]
[1750119153542,26.0,148.83,148.72,6.72402802]
[1750119153743,34.46,148.82,148.73,18.64964886]
[1750119153948,34.46,148.83,148.74,0.42648471]
[1750119154485,34.46,148.83,148.74,0.28432314]